bitfinex/quotes_SOLUSD_20251125
["timestamp","ask_amount","ask_price","bid_price","bid_amount"]
[1764093779531,12.25621526,137.32,137.31,7.28279076]
[1764093779733,11.54621526,137.33,137.31,7.97279076]
[1764093779932,11.54621526,137.33,137.31,7.28279076]
[1764093780133,11.54621526,137.32,137.31,7.28279076]
[1764093780345,11.54621526,137.32,137.3,25.49040406]
[1764093780650,12.25621526,137.31,137.3,7.28332119]
[1764093780842,12.25621526,137.31,137.29,7.28360888]
[1764093781157,12.25621526,137.3,137.29,7.28360888]
[1764093781456,11.54621526,137.31,137.29,7.28360888]
[1764093781660,12.25621526,137.33,137.29,25.49323813]
[1764093781827,11.54621526,137.31,137.29,7.28360888]
[1764093782360,12.25621526,137.31,137.29,7.28360888]
[1764093783049,11.54621526,137.32,137.3,0.69]
[1764093783255,11.54621526,137.32,137.28,26.18467162]
[1764093783453,12.25621526,137.32,137.28,26.18467162]
[1764093783652,11.54621526,137.29,137.19,7.28916101]
[1764093783968,11.54621526,137.25,137.21,0.69]
[1764093784161,11.54621526,137.24,137.19,37.74827881]
[1764093784333,11.54621526,137.23,137.19,26.20206355]
[1764093784536,11.54621526,137.23,137.19,25.51206355]
[1764093784837,11.54621526,137.23,137.13,104.06724741]
[1764093784838,8.80994492,137.19,137.13,3.80781081]
[1764093785036,11.54621526,137.14,137.11,0.1]
[1764093785341,11.54621526,137.12,137.11,0.1]
[1764093787550,12.25621526,137.12,137.11,0.1]
[1764093789081,11.54621526,137.12,137.11,0.1]
[1764093789377,12.25621526,137.12,137.11,0.1]
[1764093789754,22.8090974,137.12,137.11,0.1]
[1764093789955,31.61904232,137.12,137.11,0.1]
[1764093793279,8.80994492,137.08,137.06,0.1]
[1764093793461,23.61616018,137.07,137.06,0.1]
[1764093793878,24.32616018,137.07,137.06,0.1]
[1764093794188,8.80994492,137.06,137.04,0.1]
[1764093794374,11.54621526,137.05,137.04,0.1]
[1764093794564,21.06616018,137.05,137.04,0.1]
[1764093794759,11.54621526,137.05,137.04,0.1]
[1764093794975,14.80621526,137.05,137.04,0.1]
[1764093796377,8.0051668,137.08,137.04,0.1]
[1764093796579,20.35616018,137.05,137.04,0.1]
[1764093797087,12.25621526,137.05,137.04,0.1]
[1764093797387,14.80621526,137.05,137.04,0.1]
[1764093797569,15.51621526,137.05,137.04,0.1]
[1764093800057,31.62276725,137.05,137.04,0.1]
[1764093801966,31.62276725,137.05,137.03,0.1]
[1764093802271,16.308864,137.01,136.99,0.1]
[1764093802473,14.80621526,137.0,136.99,0.1]
[1764093802679,15.51621526,137.0,136.99,0.1]
[1764093802986,24.32616018,137.0,136.99,0.1]
[1764093803291,35.87237544,137.0,136.99,0.1]
[1764093803457,24.32616018,137.0,136.99,0.1]
[1764093804172,31.11507926,137.0,136.99,0.1]
[1764093804570,7.98838131,137.02,136.99,0.1]
[1764093804777,11.54621526,137.0,136.99,0.79]
[1764093805022,11.54621526,137.0,136.99,0.1]
[1764093805293,3.26,137.01,136.99,0.1]
[1764093805663,14.80621526,137.0,136.99,0.1]
[1764093806278,0.69,137.07,136.99,12.33621526]
[1764093806480,0.69,137.07,137.0,12.23621526]
[1764093806481,3.26,137.06,137.0,12.23621526]
[1764093806786,11.54621526,137.04,137.0,12.23621526]
[1764093807089,11.54621526,137.04,137.01,0.69]
[1764093807582,11.54621526,137.02,136.99,0.79]
[1764093807782,11.54621526,137.02,137.0,0.69]
[1764093808289,11.54621526,137.02,137.0,7.98880598]
[1764093808764,3.26,137.03,137.01,0.69]
[1764093808765,11.54621526,137.03,137.01,0.69]
[1764093808967,14.80621526,137.04,137.01,0.69]
[1764093810373,14.80621526,137.04,137.02,7.29820464]
[1764093810760,11.54621526,137.03,137.02,7.29820464]
[1764093812176,11.54621526,137.03,137.01,7.29851251]
[1764093812376,11.54621526,137.03,137.01,0.69]
[1764093812887,3.26,137.04,137.0,25.54744525]
[1764093813095,11.54621526,137.03,137.02,0.69]
[1764093813301,11.54621526,137.03,137.0,25.54744525]
[1764093813898,11.54621526,137.03,137.01,0.69]
[1764093815083,11.54621526,137.03,137.02,7.29820464]
[1764093816493,11.54621526,137.03,137.0,25.54744525]
[1764093816690,3.26,137.04,137.02,0.69]
[1764093817292,14.80621526,137.04,137.02,0.69]
[1764093818178,3.26,137.04,137.02,0.69]
[1764093818385,11.54621526,137.05,137.03,7.29767204]
[1764093818573,11.54621526,137.04,137.03,7.29767204]
[1764093818775,11.54621526,137.04,137.02,7.29814744]
[1764093819003,11.54621526,137.04,137.02,7.98814744]
[1764093819576,11.54621526,137.03,137.02,7.29814744]
[1764093819770,11.54621526,137.03,137.01,7.29851127]
[1764093819977,11.54621526,137.02,137.01,7.98851127]
[1764093820389,11.54621526,137.02,136.99,19.03882365]
[1764093820701,11.54621526,137.02,137.0,0.69]
[1764093820886,3.26,137.03,137.0,0.69]
[1764093821082,11.54621526,137.02,137.0,0.69]
[1764093821506,3.26,137.03,137.0,0.69]
[1764093821678,11.54621526,137.02,137.0,0.69]
[1764093821878,11.54621526,137.01,136.99,0.1]
[1764093822197,11.54621526,137.02,136.99,0.79]
[1764093822372,11.54621526,137.02,137.0,7.29927007]
[1764093822579,6.66007801,137.02,137.0,7.29927007]
[1764093822980,9.92007801,137.03,137.01,0.69]
[1764093823197,6.66007801,137.02,137.0,7.98927007]
[1764093825407,6.66007801,137.02,136.99,15.3366304]
[1764093826412,6.66007801,137.02,137.0,7.29927007]
[1764093826590,2.79719788,137.02,136.99,15.3366304]
[1764093827405,2.79719788,137.02,136.99,16.0266304]
[1764093828114,2.79719788,137.02,136.98,7.30033581]
[1764093828423,2.79719788,137.0,136.98,7.30033581]
[1764093828591,3.48719788,137.01,136.98,7.30033581]
[1764093829105,2.79719788,137.01,136.98,7.99033581]
[1764093830307,2.79719788,137.01,136.98,26.24117534]
[1764093830497,6.66093605,137.01,136.98,26.24117534]
[1764093832597,7.35093605,137.01,136.98,26.24117534]
[1764093834731,7.35093605,137.01,136.98,0.69]
[1764093834897,6.66093605,136.99,136.97,0.1]
[1764093835097,7.32093605,136.99,136.97,0.1]
[1764093835348,7.32093605,136.99,136.97,7.40066207]
[1764093835695,6.66093605,136.99,136.97,7.40066207]
[1764093836101,0.66,137.0,136.97,8.09066207]
[1764093836102,7.32093605,137.0,136.97,8.09066207]
[1764093837028,3.24,137.02,136.98,7.35093605]
[1764093837398,3.24,137.02,136.99,0.69]
[1764093837831,10.56093605,137.02,136.97,33.00377012]
[1764093838003,6.66093605,137.01,136.98,0.69]
[1764093838202,7.32093605,137.01,136.98,0.69]
[1764093838496,6.66093605,137.0,136.98,0.69]
[1764093838743,7.32093605,137.0,136.97,25.65283407]
[1764093838893,6.66093605,136.99,136.97,0.1]
[1764093839215,7.32093605,137.0,136.97,0.1]
[1764093839731,6.66093605,136.98,136.97,0.1]
[1764093839934,7.38093605,136.98,136.97,0.1]
[1764093840999,23.49121678,136.98,136.97,0.1]
[1764093841207,0.72,136.98,136.94,0.77]
[1764093841410,6.66093605,137.01,136.96,6.66093605]
[1764093841644,9.92093605,137.01,136.96,6.66093605]
[1764093841941,0.72,137.02,136.95,0.67]
[1764093841942,9.92093605,137.02,136.98,6.66093605]
[1764093842110,6.66093605,136.99,136.95,0.67]
[1764093842310,3.26,137.0,136.96,0.67]
[1764093842624,6.66093605,136.99,136.96,0.67]
[1764093843218,6.66093605,136.99,136.97,7.3008688]
[1764093843537,7.38093605,136.98,136.94,0.1]
[1764093844009,7.38093605,136.98,136.94,0.77]
[1764093844334,0.72,136.98,136.94,0.77]
[1764093844546,7.38093605,136.98,136.94,0.77]
[1764093844853,7.38093605,136.98,136.95,7.30174443]
[1764093845034,6.66093605,136.98,136.95,7.30174443]
[1764093845200,7.38093605,136.98,136.95,7.30174443]
[1764093845627,0.72,136.98,136.95,7.30174443]
[1764093845837,7.38093605,136.98,136.95,7.30174443]
[1764093846537,17.028864,137.01,136.96,0.67]
[1764093846738,9.92093605,136.99,136.97,7.3008688]
[1764093847115,6.66093605,136.99,136.97,7.3008688]
[1764093847310,9.92093605,136.99,136.97,7.3008688]
[1764093848228,3.26,137.01,136.98,0.67]
[1764093848633,3.98,137.01,136.97,32.21397685]
[1764093848820,10.64093605,137.01,136.97,26.2230408]
[1764093849619,7.38093605,137.0,136.97,26.2230408]
[1764093849818,6.66093605,137.0,136.97,26.2230408]
[1764093850142,10.64093605,137.01,136.97,26.2230408]
[1764093850527,6.77758836,137.01,136.97,26.2230408]
[1764093850913,3.26,137.01,136.98,3.46758836]
[1764093851117,9.52994492,137.05,136.99,2.79758836]
[1764093851118,6.77758836,137.04,136.99,2.79758836]
[1764093851323,6.05758836,137.04,136.99,3.46758836]
[1764093851521,6.05758836,137.04,136.99,0.67]
[1764093851522,3.51758836,137.03,136.99,0.67]
[1764093851722,3.98,137.04,137.0,0.67]
[1764093851922,6.77758836,137.04,137.0,0.67]
[1764093852152,3.98,137.04,137.0,0.67]
[1764093852444,3.51758836,137.03,136.98,2.79758836]
[1764093852658,2.79758836,137.03,136.99,0.67]
[1764093853245,6.77758836,137.04,137.0,25.54744525]
[1764093853439,16.308864,137.05,137.01,2.79758836]
[1764093853440,2.79758836,137.05,137.01,2.79758836]
[1764093853638,2.79758836,137.05,137.01,0.67]
[1764093853842,2.79758836,137.03,137.0,25.54744525]
[1764093854237,2.79758836,137.03,137.0,26.21744525]
[1764093854435,0.72,137.04,137.0,26.21744525]
[1764093854639,2.79758836,137.08,137.03,2.79758836]
[1764093854945,6.77758836,137.08,137.03,2.79758836]
[1764093855254,3.98,137.08,137.05,7.29660707]
[1764093855629,3.26,137.08,137.05,26.20812476]
[1764093856447,6.05758836,137.08,137.05,26.20812476]
[1764093856946,3.26,137.08,137.05,26.20812476]
[1764093857550,6.77758836,137.08,137.05,25.53812476]
[1764093857748,6.77758836,137.08,137.05,7.29660707]
[1764093857955,2.79758836,137.06,137.04,7.29694635]
[1764093858330,3.51758836,137.06,137.04,7.29694635]
[1764093859049,3.51758836,137.08,137.04,7.96694635]
[1764093859249,6.03758836,137.08,137.04,7.29694635]
[1764093859554,3.51758836,137.07,137.04,7.29694635]
[1764093861033,3.51758836,137.06,137.04,7.29694635]
[1764093861464,3.51758836,137.06,137.03,25.5412942]
[1764093861660,2.79758836,137.07,137.03,26.2112942]
[1764093861868,3.51758836,137.07,137.03,26.2112942]
[1764093863164,3.51758836,137.07,137.03,29.00888256]
[1764093864044,3.47758836,137.06,137.03,7.29767204]
[1764093864364,2.79758836,137.04,137.0,25.54744525]
[1764093864540,2.79758836,137.03,137.0,25.54744525]
[1764093864738,6.71758836,137.04,137.0,26.21744525]
[1764093865538,6.03758836,137.04,137.01,0.67]
[1764093865749,3.24,137.04,137.01,0.67]
[1764093866045,3.24,137.04,137.02,7.29820464]
[1764093867639,6.03758836,137.04,137.02,7.29820464]
[1764093867862,6.03758836,137.04,137.02,7.09820464]
[1764093868169,3.47758836,137.03,136.99,7.2998029]
[1764093868369,2.79758836,137.02,136.99,7.9698029]
[1764093868536,0.68,137.03,136.99,26.21931016]
[1764093868537,2.79758836,137.03,136.99,26.21931016]
[1764093868742,3.47758836,137.03,136.99,26.21931016]
[1764093869062,6.03758836,137.04,137.0,0.67]
[1764093869366,6.71758836,137.04,137.0,0.67]
[1764093870482,2.79758836,137.01,136.98,7.30033581]
[1764093870868,3.47758836,137.01,136.98,7.30033581]
[1764093871157,3.47758836,137.01,136.98,7.97033581]
[1764093871366,3.47758836,137.01,136.98,26.02117534]
[1764093873170,2.79758836,137.05,137.0,2.79758836]
[1764093873367,36.46712039,137.11,137.03,2.79758836]
[1764093873368,0.68,137.07,137.03,2.79758836]
[1764093873575,2.79758836,137.08,137.04,26.20998832]
[1764093873876,2.79758836,137.08,137.04,29.00757668]
[1764093874172,6.71758836,137.09,137.04,29.00757668]
[1764093874376,0.68,137.08,137.04,29.00757668]
[1764093874677,3.47758836,137.08,137.04,28.80757668]
[1764093875066,0.68,137.08,137.04,28.80757668]
[1764093875372,16.308864,137.1,137.07,2.79758836]
[1764093875571,2.79758836,137.14,137.09,2.79758836]
[1764093875787,23.22645236,137.15,137.1,2.79758836]
[1764093875979,3.47758836,137.14,137.1,2.79758836]
[1764093876149,3.47758836,137.14,137.09,3.46758836]
[1764093876350,3.47758836,137.13,137.09,3.46758836]
[1764093876679,3.47758836,137.13,137.09,0.67]
[1764093877576,3.47758836,137.13,137.09,7.96409617]
[1764093878075,0.68,137.13,137.09,10.76168453]
[1764093878261,0.68,137.13,137.09,10.56168453]
[1764093878455,3.47758836,137.13,137.09,10.56168453]
[1764093878777,0.68,137.13,137.09,28.79787973]
[1764093879444,2.99758836,137.15,137.11,25.52694915]
[1764093879649,0.88,137.15,137.11,28.32453751]
[1764093880184,0.88,137.15,137.11,10.0910024]
[1764093880352,3.67758836,137.15,137.11,10.0910024]
[1764093881479,2.99758836,137.15,137.11,7.29341404]
[1764093881684,3.47758836,137.14,137.1,7.2937635]
[1764093881851,2.79758836,137.13,137.1,7.2937635]
[1764093882050,3.47758836,137.13,137.1,7.2937635]
[1764093882268,0.68,137.12,137.1,7.2937635]
[1764093882959,0.2,137.15,137.11,5.03362246]
[1764093883165,0.2,137.15,137.12,4.36362246]
[1764093883349,0.88,137.15,137.12,4.36362246]
[1764093883649,4.36362246,137.14,137.09,33.80388129]
[1764093883857,5.24362246,137.15,137.1,4.36362246]
[1764093884067,0.2,137.15,137.11,4.36362246]
[1764093884265,0.88,137.15,137.11,5.03362246]
[1764093884470,0.88,137.15,137.12,4.36362246]
[1764093884857,0.2,137.15,137.14,7.29181857]
[1764093885262,0.2,137.15,137.13,7.29222017]
[1764093885992,0.68,137.14,137.12,7.29280299]
[1764093887572,5.04362246,137.14,137.11,7.29319293]
[1764093887884,4.36362246,137.13,137.11,7.29319293]
[1764093888068,5.04362246,137.13,137.11,7.29319293]
[1764093889159,0.68,137.12,137.11,7.29319293]
[1764093889580,0.68,137.12,137.09,25.53002594]
[1764093890180,5.04362246,137.12,137.09,25.53002594]
[1764093890388,5.04362246,137.12,137.09,7.29447808]
[1764093892087,0.2,137.15,137.11,4.36362246]
[1764093892260,0.2,137.17,137.14,20.67248646]
[1764093892462,0.2,137.17,137.16,4.36362246]
[1764093892965,0.2,137.17,137.16,5.03362246]
[1764093893167,0.2,137.17,137.16,0.67]
[1764093893585,0.2,137.17,137.16,7.29075532]
[1764093895792,0.2,137.17,137.15,7.29128691]
[1764093897983,0.2,137.17,137.15,18.85908992]
[1764093898992,0.2,137.17,137.15,7.29128691]
[1764093899197,0.7,137.16,137.13,7.29235032]
[1764093899493,11.56780301,137.14,137.08,37.10030586]
[1764093899691,11.56780301,137.15,137.11,11.56780301]
[1764093899873,12.26780301,137.15,137.12,7.29288214]
[1764093900283,3.24,137.16,137.13,12.28780301]
[1764093900489,0.2,137.17,137.13,12.28780301]
[1764093900793,12.46780301,137.17,137.13,11.56780301]
[1764093901778,0.2,137.17,137.15,18.85908992]
[1764093902092,0.2,137.17,137.15,7.29128691]
[1764093903579,0.2,137.17,137.15,18.85908992]
[1764093904077,0.2,137.17,137.15,19.57908992]
[1764093904392,0.2,137.17,137.16,12.28780301]
[1764093904567,0.2,137.19,137.16,12.28780301]
[1764093904769,0.2,137.21,137.18,11.56780301]
[1764093904997,0.2,137.21,137.2,11.56780301]
[1764093905185,0.2,137.21,137.19,12.28780301]
[1764093905384,0.2,137.21,137.19,11.56780301]
[1764093905679,0.2,137.21,137.18,15.52780301]
[1764093905994,0.2,137.21,137.19,11.56780301]
[1764093906192,0.2,137.21,137.2,7.28862973]
[1764093906892,0.7,137.26,137.2,37.79800708]
[1764093907075,0.7,137.26,137.22,11.56780301]
[1764093907269,11.56780301,137.27,137.22,11.56780301]
[1764093907500,0.7,137.27,137.22,12.28780301]
[1764093907698,0.2,137.31,137.25,11.56780301]
[1764093907874,9.00994492,137.31,137.27,11.56780301]
[1764093908074,0.2,137.31,137.28,10.52415435]
[1764093908280,12.46780301,137.31,137.26,0.72]
[1764093908594,11.56780301,137.29,137.27,7.28491294]
[1764093908775,12.26780301,137.3,137.27,7.28491294]
[1764093909184,0.7,137.29,137.27,7.28491294]
[1764093909898,12.26780301,137.29,137.26,7.28531976]
[1764093910271,0.7,137.29,137.26,18.85312277]
[1764093910477,0.7,137.29,137.26,25.49892896]
[1764093910789,12.26780301,137.29,137.25,10.52590706]
[1764093910978,0.7,137.29,137.25,7.28590706]
[1764093911292,11.56780301,137.27,137.25,7.28590706]
[1764093911809,11.56780301,137.27,137.24,7.28633864]
[1764093911810,0.7,137.26,137.24,7.28633864]
[1764093912097,12.26780301,137.26,137.22,16.308864]
[1764093912304,12.26780301,137.26,137.23,7.28703636]
[1764093912511,11.56780301,137.24,137.19,18.85696402]
[1764093912796,11.56780301,137.24,137.17,7.2902238]
[1764093912797,11.56780301,137.21,137.17,7.2902238]
[1764093912982,17.008864,137.23,137.17,7.2902238]
[1764093913173,0.7,137.23,137.18,0.72]
[1764093913373,12.26780301,137.25,137.18,0.72]
[1764093913574,12.26780301,137.24,137.17,78.27576636]
[1764093913873,12.26780301,137.24,137.19,11.56780301]
[1764093914073,11.56780301,137.22,137.17,90.56356937]
[1764093914508,12.26780301,137.22,137.17,54.11245033]
[1764093914992,12.26780301,137.22,137.17,57.35245033]
[1764093915389,12.26780301,137.22,137.17,54.11245033]
[1764093915598,12.26780301,137.22,137.17,57.35245033]
[1764093916374,0.7,137.24,137.18,0.72]
[1764093916602,5.05651479,137.24,137.19,4.35651479]
[1764093916800,4.35651479,137.23,137.18,0.72]
[1764093916986,5.05651479,137.23,137.18,5.07651479]
[1764093917187,4.35651479,137.26,137.21,4.35651479]
[1764093917384,0.7,137.29,137.21,3.24]
[1764093917602,0.7,137.3,137.24,4.35651479]
[1764093917806,4.35651479,137.29,137.24,7.59651479]
[1764093918118,0.7,137.3,137.24,7.28650539]
[1764093918276,4.35651479,137.28,137.24,25.50276887]
[1764093918607,12.25118729,137.28,137.24,25.50276887]
[1764093919487,0.7,137.29,137.24,25.50276887]
[1764093919897,11.55118729,137.27,137.24,25.50276887]
[1764093920095,11.55118729,137.26,137.23,7.28703636]
[1764093920296,11.55118729,137.27,137.23,18.83822365]
[1764093920498,11.55118729,137.27,137.23,25.50462726]
[1764093920704,12.25118729,137.26,137.23,25.50462726]
[1764093921012,11.55118729,137.25,137.23,7.28703636]
[1764093921807,0.2,137.31,137.24,15.51118729]
[1764093922007,0.2,137.31,137.27,25.4971953]
[1764093922310,12.45118729,137.31,137.27,25.4971953]
[1764093922492,11.55118729,137.3,137.27,25.4971953]
[1764093922690,0.7,137.3,137.27,25.4971953]
[1764093922892,0.2,137.31,137.27,7.28491294]
[1764093923316,0.2,137.36,137.32,11.55118729]
[1764093923517,0.2,137.36,137.32,14.81118729]
[1764093923810,0.2,137.36,137.28,25.76880892]
[1764093923811,11.55118729,137.34,137.29,12.20118729]
[1764093924017,11.55118729,137.34,137.3,25.49162417]
[1764093924323,0.2,137.36,137.3,37.69281146]
[1764093924627,0.2,137.36,137.29,7.28368789]
[1764093924628,11.55118729,137.32,137.29,7.28368789]
[1764093925099,11.55118729,137.33,137.29,37.69450443]
[1764093925513,12.23118729,137.33,137.29,26.14331714]
[1764093925715,11.55118729,137.31,137.29,7.28368789]
[1764093926222,12.23118729,137.31,137.27,25.4967]
[1764093926521,11.55118729,137.3,137.27,26.1467]
[1764093926808,11.55118729,137.29,137.27,7.28491294]
[1764093927015,43.3214007,137.35,137.25,18.86440944]
[1764093927016,11.55118729,137.3,137.26,25.49888005]
[1764093927396,11.55118729,137.29,137.26,7.28527085]
[1764093927604,0.68,137.3,137.25,7.28592928]
[1764093927913,16.308864,137.29,137.23,7.28654585]
[1764093928093,11.55118729,137.25,137.19,0.65]
[1764093928288,11.55118729,137.25,137.21,11.55118729]
[1764093928610,11.55118729,137.24,137.2,26.16020407]
[1764093928800,0.68,137.25,137.2,26.16020407]
[1764093929004,11.55118729,137.23,137.2,25.51020407]
[1764093929191,11.55118729,137.23,137.2,7.28862973]
[1764093929585,12.23118729,137.23,137.2,7.28862973]
[1764093929782,11.55118729,137.22,137.2,7.28862973]
[1764093930003,3.26,137.27,137.19,25.51197292]
[1764093930211,11.55118729,137.23,137.19,37.06316021]
[1764093930414,11.55118729,137.25,137.2,12.20118729]
[1764093930585,11.55118729,137.25,137.21,11.55118729]
[1764093930783,11.55118729,137.23,137.19,7.93907038]
[1764093930994,11.55118729,137.23,137.19,11.19907038]
[1764093931415,11.22507383,137.27,137.2,12.20118729]
[1764093931616,11.55118729,137.25,137.2,12.20118729]
[1764093931797,11.55118729,137.23,137.19,40.32316021]
[1764093932310,11.55118729,137.23,137.19,40.97316021]
[1764093932514,11.55118729,137.24,137.19,40.97316021]
[1764093933018,12.23118729,137.25,137.2,11.55118729]
[1764093933233,12.23118729,137.26,137.22,11.55118729]
[1764093933407,12.23118729,137.26,137.21,11.55118729]
[1764093933595,12.23118729,137.26,137.2,0.65]
[1764093933596,0.68,137.26,137.23,11.55118729]
[1764093934019,0.68,137.26,137.21,0.65]
[1764093934202,11.55118729,137.25,137.21,10.54809853]
[1764093934522,12.23118729,137.26,137.21,26.15834486]
[1764093934731,12.23118729,137.25,137.21,7.28809853]
[1764093934895,0.68,137.25,137.21,7.28809853]
[1764093935099,0.68,137.24,137.2,7.28848719]
[1764093935428,12.23118729,137.24,137.2,7.28848719]
[1764093935724,12.23118729,137.29,137.21,20.218864]
[1764093935900,0.68,137.28,137.23,11.55118729]
[1764093936090,11.55118729,137.27,137.23,11.55118729]
[1764093936294,11.55118729,137.27,137.24,7.28650539]
[1764093936519,12.23118729,137.27,137.24,7.28650539]
[1764093936705,0.68,137.26,137.24,7.28650539]
[1764093937024,12.23118729,137.27,137.23,11.55118729]
[1764093937814,0.68,137.27,137.23,11.55118729]
[1764093938319,0.68,137.27,137.24,7.28650539]
[1764093938523,0.68,137.27,137.23,18.83802195]
[1764093939319,0.68,137.27,137.23,37.05561285]
[1764093939820,0.68,137.27,137.23,37.70561285]
[1764093940206,0.68,137.27,137.23,37.05561285]
[1764093940826,0.68,137.27,137.23,37.70561285]
[1764093941027,0.68,137.27,137.23,37.05561285]
[1764093941597,0.68,137.27,137.23,25.50442556]
[1764093941823,0.68,137.27,137.23,37.05561285]
[1764093942233,11.55118729,137.25,137.23,7.28683466]
[1764093942404,11.55118729,137.26,137.23,7.28683466]
[1764093942733,6.63686223,137.26,137.22,7.2875674]
[1764093943102,7.31686223,137.26,137.22,7.2875674]
[1764093943301,0.68,137.25,137.22,7.2875674]
[1764093945842,6.63686223,137.23,137.17,3.26]
[1764093946127,6.63686223,137.21,137.17,28.12170964]
[1764093946331,3.26,137.24,137.17,24.86170964]
[1764093946332,6.63686223,137.22,137.17,24.86170964]
[1764093946531,0.68,137.23,137.18,6.63686223]
[1764093946735,10.57686223,137.24,137.19,6.63686223]
[1764093946912,6.63686223,137.22,137.18,6.63686223]
[1764093947112,6.63686223,137.22,137.17,24.86170964]
[1764093947336,0.68,137.21,137.17,24.86170964]
[1764093947539,0.68,137.21,137.17,25.51170964]
[1764093947717,0.68,137.21,137.17,32.80193344]
[1764093947918,0.68,137.21,137.18,6.63686223]
[1764093948119,0.68,137.21,137.17,26.16507121]
[1764093948338,0.68,137.21,137.17,32.80193344]
[1764093948636,0.68,137.21,137.18,6.63686223]
[1764093949227,0.68,137.25,137.2,6.63686223]
[1764093949549,0.68,137.25,137.21,6.63686223]
[1764093949840,0.68,137.25,137.22,7.2875674]
[1764093950010,7.31686223,137.25,137.22,7.2875674]
[1764093950845,0.68,137.24,137.22,7.2875674]
[1764093951140,8.80994492,137.26,137.22,7.2875674]
[1764093951345,0.68,137.24,137.22,7.2875674]
[1764093951836,7.31686223,137.26,137.22,26.15648592]
[1764093952222,0.68,137.26,137.22,25.50648592]
[1764093952424,7.31686223,137.26,137.22,25.50648592]
[1764093952623,6.63686223,137.25,137.22,25.50648592]
[1764093952926,7.31686223,137.25,137.22,25.50648592]
[1764093953517,6.63686223,137.26,137.22,25.50648592]
[1764093953716,7.35686223,137.26,137.22,25.50648592]
[1764093953937,0.72,137.25,137.22,7.2875674]
[1764093954139,7.35686223,137.25,137.22,7.2875674]
[1764093954529,7.35686223,137.24,137.22,7.2875674]
[1764093954926,7.28512113,137.27,137.22,7.2875674]
[1764093955142,6.63686223,137.26,137.22,13.92442963]
[1764093955337,7.35686223,137.26,137.22,13.92442963]
[1764093955831,7.35686223,137.26,137.22,7.2875674]
[1764093956421,7.35686223,137.26,137.22,25.50648592]
[1764093956638,0.72,137.26,137.22,26.20648592]
[1764093957033,9.89686223,137.28,137.23,7.33686223]
[1764093957220,7.35686223,137.27,137.22,35.40334815]
[1764093957846,6.63686223,137.26,137.22,25.50648592]
[1764093958045,6.63686223,137.25,137.22,25.50648592]
[1764093958343,6.63686223,137.24,137.22,7.2875674]
[1764093958526,0.72,137.24,137.21,7.28785511]
[1764093958940,7.35686223,137.24,137.21,7.28785511]
[1764093960054,12.06994492,137.28,137.22,10.57686223]
[1764093960231,9.89686223,137.28,137.23,7.31686223]
[1764093960440,7.32686223,137.29,137.24,6.63686223]
[1764093960625,7.32686223,137.29,137.25,7.28597449]
[1764093960829,7.28354998,137.3,137.23,7.28703636]
[1764093960830,6.63686223,137.27,137.23,7.28703636]
[1764093961352,7.28332119,137.3,137.22,7.28752318]
[1764093961353,6.63686223,137.25,137.22,7.28752318]
[1764093961538,6.63686223,137.24,137.2,7.28862102]
[1764093961746,9.49994492,137.25,137.17,0.68]
[1764093961944,6.63686223,137.24,137.18,6.63686223]
[1764093962246,7.32686223,137.24,137.18,6.63686223]
[1764093962548,7.32686223,137.23,137.18,6.63686223]
[1764093962756,0.69,137.23,137.19,6.63686223]
[1764093962929,0.69,137.23,137.19,7.31686223]
[1764093963346,23.42279318,137.25,137.2,6.63686223]
[1764093963559,0.69,137.24,137.2,7.31686223]
[1764093963739,9.49994492,137.25,137.21,6.63686223]
[1764093963928,0.69,137.25,137.21,6.63686223]
[1764093964134,7.32686223,137.27,137.22,7.31686223]
[1764093964626,0.69,137.26,137.22,6.63686223]
[1764093964972,0.69,137.26,137.23,7.28703636]
[1764093965150,10.58686223,137.28,137.23,26.18462726]
[1764093965456,0.69,137.27,137.23,26.18462726]
[1764093965634,7.32686223,137.27,137.23,7.28703636]
[1764093965950,6.63686223,137.26,137.23,7.28703636]
[1764093966139,7.32686223,137.26,137.23,7.28703636]
[1764093966655,7.32686223,137.25,137.19,35.21130248]
[1764093966841,6.63686223,137.22,137.17,6.63686223]
[1764093967036,6.63686223,137.23,137.18,6.63686223]
[1764093967250,3.95,137.24,137.17,22.94572623]
[1764093967251,6.63686223,137.22,137.17,22.94572623]
[1764093967450,6.63686223,137.22,137.17,16.308864]
[1764093967641,0.69,137.21,137.17,16.308864]